fUST/lending_fUST_20250524
["ID","MTS","AMOUNT","RATE_DAILY","PERIOD"]
[362163945,1748045442954,-430.0,0.00018801,2]
[362163946,1748045442964,-430.0,0.00018801,2]
[362163947,1748045442974,-430.0,0.00018801,2]
[362163948,1748045442983,-430.0,0.00018801,2]
[362163949,1748045442993,-430.0,0.00018801,2]
[362163950,1748045443003,-430.0,0.00018801,2]
[362163951,1748045443013,-430.0,0.00018801,2]
[362163952,1748045443023,-430.0,0.00018801,2]
[362163953,1748045443033,-430.0,0.00018801,2]
[362163954,1748045443044,-430.0,0.00018801,2]
[362163955,1748045443054,-430.0,0.00018801,2]
[362163956,1748045443067,-430.0,0.00018801,2]
[362163957,1748045443078,-430.0,0.00018801,2]
[362163958,1748045443088,-273.06,0.00018801,2]
[362163959,1748045443098,-430.0,0.00018801,2]
[362163960,1748045443109,-430.0,0.00018801,2]
[362163961,1748045443119,-430.0,0.00018801,2]
[362163962,1748045443131,-430.0,0.00018801,2]
[362163963,1748045443142,-430.0,0.00018801,2]
[362163964,1748045443153,-430.0,0.00018801,2]
[362163965,1748045443163,-430.0,0.00018801,2]
[362163966,1748045443174,-430.0,0.00018801,2]
[362163967,1748045443184,-430.0,0.00018801,2]
[362163968,1748045443193,-430.0,0.00018801,2]
[362163970,1748045443203,-430.0,0.00018801,2]
[362163972,1748045443218,-487.99,0.00018801,2]
[362163974,1748045443228,-430.0,0.00018801,2]
[362163976,1748045443237,-430.0,0.00018801,2]
[362163978,1748045443247,-430.0,0.00018801,2]
[362163981,1748045443257,-430.0,0.00018801,2]
[362163984,1748045443266,-490.0,0.00018801,2]
[362163986,1748045443276,-430.0,0.00018801,2]
[362163988,1748045443286,-430.0,0.00018801,2]
[362163990,1748045443295,-430.0,0.00018801,2]
[362163992,1748045443304,-490.0,0.00018801,2]
[362163994,1748045443314,-430.0,0.00018801,2]
[362163996,1748045443323,-430.0,0.00018801,2]
[362163998,1748045443334,-430.0,0.00018801,2]
[362164000,1748045443344,-466.60450915,0.00018801,2]
[362164002,1748045443354,-430.0,0.00018801,2]
[362164004,1748045443364,-430.0,0.00018801,2]
[362164006,1748045443374,-430.0,0.00018801,2]
[362164008,1748045443384,-430.0,0.00018801,2]
[362164010,1748045443394,-679.92,0.00018801,2]
[362164013,1748045443404,-430.0,0.00018801,2]
[362164016,1748045443413,-430.0,0.00018801,2]
[362164019,1748045443423,-430.0,0.00018801,2]
[362164022,1748045443433,-430.0,0.00018801,2]
[362164026,1748045443444,-430.0,0.00018801,2]
[362164028,1748045443454,-430.0,0.00018801,2]
[362164032,1748045443464,-430.0,0.00018801,2]
[362164035,1748045443474,-430.0,0.00018801,2]
[362164037,1748045443483,-430.0,0.00018801,2]
[362164039,1748045443493,-430.0,0.00018801,2]
[362164041,1748045443502,-569.9,0.00018801,2]
[362164043,1748045443512,-430.0,0.00018801,2]
[362164044,1748045443523,-430.0,0.00018801,2]
[362164047,1748045443533,-430.0,0.00018801,2]
[362164049,1748045443543,-430.0,0.00018801,2]
[362164051,1748045443554,-430.0,0.00018801,2]
[362164053,1748045443563,-430.0,0.00018801,2]
[362164055,1748045443573,-430.0,0.00018801,2]
[362164057,1748045443582,-430.0,0.00018801,2]
[362164059,1748045443592,-430.0,0.00018801,2]
[362164061,1748045443602,-430.0,0.00018801,2]
[362164063,1748045443611,-430.0,0.00018801,2]
[362164065,1748045443622,-430.0,0.00018801,2]
[362164067,1748045443631,-430.0,0.00018801,2]
[362164069,1748045443641,-430.0,0.00018801,2]
[362164071,1748045443651,-430.0,0.00018801,2]
[362164073,1748045443662,-430.0,0.00018801,2]
[362164075,1748045443672,-430.0,0.00018801,2]
[362164077,1748045443682,-430.0,0.00018801,2]
[362164079,1748045443692,-430.0,0.00018801,2]
[362164081,1748045443703,-430.0,0.00018801,2]
[362164083,1748045443713,-430.0,0.00018801,2]
[362164085,1748045443723,-430.0,0.00018801,2]
[362164087,1748045443734,-270.0,0.00018801,2]
[362164089,1748045443746,-2747.311402,0.00018801,2]
[362164091,1748045443756,-430.0,0.00018801,2]
[362164093,1748045443766,-2747.311402,0.00018801,2]
[362164095,1748045443776,-430.0,0.00018801,2]
[362164097,1748045443786,-430.0,0.00018801,2]
[362164099,1748045443796,-432.99,0.00018801,2]
[362164110,1748045443897,-430.0,0.00018801,2]
[362164112,1748045443907,-542.16,0.00018801,2]
[362164114,1748045443918,-430.0,0.00018801,2]
[362164115,1748045443927,-430.0,0.00018801,2]
[362164116,1748045443938,-430.0,0.00018801,2]
[362164117,1748045443947,-430.0,0.00018801,2]
[362164118,1748045443957,-430.0,0.00018801,2]
[362164119,1748045443967,-430.0,0.00018801,2]
[362164120,1748045443977,-430.0,0.00018801,2]
[362164121,1748045443988,-430.0,0.00018801,2]
[362164122,1748045443998,-162.87874045,0.00018801,2]
[362164123,1748045444008,-430.0,0.00018801,2]
[362164124,1748045444018,-430.0,0.00018801,2]
[362164125,1748045444029,-430.0,0.00018801,2]
[362164126,1748045444039,-430.0,0.00018801,2]
[362164127,1748045444048,-430.0,0.00018801,2]
[362164128,1748045444058,-456.15,0.00018801,2]
[362164129,1748045444068,-430.0,0.00018801,2]
[362164130,1748045444078,-430.0,0.00018801,2]
[362164131,1748045444087,-1664.900638,0.00018803,2]
[362164132,1748045444097,-1664.900638,0.00018803,2]
[362164133,1748045444108,-439.99484291,0.00018804,2]
[362164134,1748045444117,-430.0,0.00018804,2]
[362164135,1748045444136,-430.0,0.00018804,2]
[362164136,1748045444145,-490.0,0.00018804,2]
[362164137,1748045444155,-490.0,0.00018804,2]
[362164138,1748045444166,-340.0,0.00018804,2]
[362164139,1748045444176,-340.0,0.00018804,2]
[362164140,1748045444186,-430.0,0.00018804,2]
[362164141,1748045444196,-430.0,0.00018804,2]
[362164142,1748045444205,-430.0,0.00018804,2]
[362164143,1748045444216,-490.0,0.00018804,2]
[362164144,1748045444226,-430.0,0.00018804,2]
[362164145,1748045444236,-440.0,0.00018804,2]
[362164146,1748045444246,-430.0,0.00018804,2]
[362164147,1748045444255,-490.0,0.00018804,2]
[362164148,1748045444266,-430.0,0.00018804,2]
[362164149,1748045444276,-490.0,0.00018804,2]
[362164150,1748045444286,-430.0,0.00018804,2]
[362164151,1748045444297,-490.0,0.00018804,2]
[362164152,1748045444307,-430.0,0.00018804,2]
[362164153,1748045444317,-315.09333378,0.00018804,2]
[362164154,1748045444328,-430.0,0.00018804,2]
[362164155,1748045444338,-430.0,0.00018804,2]
[362164156,1748045444348,-490.0,0.00018804,2]
[362164157,1748045444358,-490.0,0.00018804,2]
[362164158,1748045444369,-490.0,0.00018804,2]
[362164159,1748045444384,-430.0,0.00018804,2]
[362164160,1748045444395,-430.0,0.00018819,2]
[362164161,1748045444404,-352.84,0.00018819,2]
[362164162,1748045444414,-430.0,0.00018819,2]
[362164163,1748045444424,-430.0,0.00018819,2]
[362164164,1748045444434,-430.0,0.00018819,2]
[362164165,1748045444444,-430.0,0.00018819,2]
[362164166,1748045444454,-1104.15,0.00018819,2]
[362164167,1748045444464,-587.92,0.00018819,2]
[362164168,1748045444474,-430.0,0.00018819,2]
[362164169,1748045444484,-430.0,0.00018819,2]
[362164170,1748045444494,-430.0,0.00018819,2]
[362164171,1748045444504,-430.0,0.00018819,2]
[362164172,1748045444514,-430.0,0.00018819,2]
[362164173,1748045444525,-689.6,0.00018819,2]
[362164174,1748045444535,-430.0,0.00018819,2]
[362164175,1748045444544,-430.0,0.00018819,2]
[362164176,1748045444554,-430.0,0.0001882,2]
[362164177,1748045444563,-430.0,0.0001882,2]
[362164178,1748045444573,-389.1,0.0001882,2]
[362164179,1748045444583,-430.0,0.0001882,2]
[362164180,1748045444593,-430.0,0.0001882,2]
[362164181,1748045444604,-430.0,0.0001882,2]
[362164182,1748045444615,-470.0,0.0001882,2]
[362164183,1748045444627,-430.0,0.0001882,2]
[362164184,1748045444637,-430.0,0.0001882,2]
[362164185,1748045444646,-200.39141335,0.0001882,2]
[362164186,1748045444657,-430.0,0.0001882,2]
[362164187,1748045444666,-430.0,0.0001882,2]
[362164188,1748045444676,-430.0,0.0001882,2]
[362164189,1748045444686,-1026.35,0.0001882,2]
[362164190,1748045444696,-430.0,0.0001882,2]
[362164191,1748045444706,-430.0,0.0001882,2]
[362164192,1748045444715,-368.52629353,0.0001882,2]
[362164193,1748045444726,-430.0,0.0001882,2]
[362164194,1748045444736,-430.0,0.0001882,2]
[362164195,1748045444746,-379.54,0.0001882,2]
[362164196,1748045444755,-430.0,0.0001882,2]
[362164197,1748045444765,-430.0,0.0001882,2]
[362164198,1748045444774,-463.71,0.0001882,2]
[362164199,1748045444784,-430.0,0.0001882,2]
[362164200,1748045444793,-825.67,0.0001882,2]
[362164201,1748045444803,-430.0,0.0001882,2]
[362164202,1748045444812,-163.77,0.0001882,2]
[362164203,1748045444822,-430.0,0.00018821,2]
[362164204,1748045444831,-430.0,0.00018821,2]
[362164205,1748045444841,-496.94151109,0.00018821,2]
[362164206,1748045444850,-277.29737243,0.00018821,2]
[362164207,1748045444860,-430.0,0.00018821,2]
[362164208,1748045444870,-430.0,0.00018821,2]
[362164209,1748045444882,-430.0,0.00018821,2]
[362164210,1748045444891,-430.0,0.00018821,2]
[362164211,1748045444901,-430.0,0.00018821,2]
[362164212,1748045444910,-420.0,0.00018826,2]
[362164213,1748045444921,-768.4496158,0.00018848,2]
[362164214,1748045444931,-500.0,0.00018851,2]
[362164215,1748045444941,-203.12157672,0.000189,2]
[362164216,1748045444952,-430.0,0.00019075,2]
[362164217,1748045444962,-440.0,0.00019075,2]
[362164218,1748045444971,-430.0,0.00019075,2]
[362164219,1748045444982,-400.0,0.00019075,2]
[362164220,1748045444994,-430.0,0.00019075,2]
[362164221,1748045445004,-400.0,0.00019075,2]
[362164222,1748045445015,-430.0,0.00019075,2]
[362164223,1748045445025,-430.0,0.00019075,2]
[362164224,1748045445035,-428.64,0.00019075,2]
[362164225,1748045445044,-430.0,0.00019075,2]
[362164226,1748045445054,-430.0,0.00019075,2]
[362164227,1748045445063,-440.0,0.00019075,2]
[362164228,1748045445073,-430.0,0.00019075,2]
[362164229,1748045445083,-430.0,0.00019075,2]
[362164230,1748045445092,-430.0,0.00019075,2]
[362164231,1748045445101,-430.0,0.00019075,2]
[362164232,1748045445111,-430.0,0.00019075,2]
[362164233,1748045445120,-430.0,0.00019075,2]
[362164234,1748045445134,-430.0,0.00019075,2]
[362164235,1748045445143,-430.0,0.00019075,2]
[362164236,1748045445153,-430.0,0.00019075,2]
[362164237,1748045445162,-430.0,0.00019075,2]
[362164238,1748045445173,-430.0,0.00019075,2]
[362164239,1748045445183,-430.0,0.00019075,2]
[362164240,1748045445193,-430.0,0.00019075,2]
[362164241,1748045445203,-430.0,0.00019075,2]
[362164242,1748045445213,-430.0,0.00019075,2]
[362164243,1748045445223,-430.0,0.00019075,2]
[362164244,1748045445232,-430.0,0.00019075,2]
[362164245,1748045445242,-430.0,0.00019075,2]
[362164246,1748045445251,-490.0,0.00019075,2]
[362164247,1748045445261,-430.0,0.00019075,2]
[362164248,1748045445270,-503.18850411,0.00019075,2]
[362164249,1748045445279,-430.0,0.00019075,2]
[362164250,1748045445289,-430.0,0.00019075,2]
[362164251,1748045445298,-430.0,0.00019075,2]
[362164252,1748045445308,-430.0,0.00019075,2]
[362164253,1748045445317,-430.0,0.00019075,2]
[362164254,1748045445327,-679.92,0.00019075,2]
[362164255,1748045445337,-430.0,0.00019075,2]
[362164256,1748045445346,-430.0,0.00019075,2]
[362164257,1748045445356,-430.0,0.00019075,2]
[362164258,1748045445365,-470.0,0.00019075,2]
[362164259,1748045445375,-430.0,0.00019075,2]
[362164260,1748045445384,-430.0,0.00019075,2]
[362164261,1748045445394,-430.0,0.00019075,2]
[362164262,1748045445404,-430.0,0.00019075,2]
[362164263,1748045445413,-430.0,0.00019075,2]
[362164264,1748045445423,-186.21,0.00019075,2]
[362164265,1748045445432,-430.0,0.00019075,2]
[362164266,1748045445541,-430.0,0.00019075,2]
[362164267,1748045445551,-430.0,0.00019075,2]
[362164268,1748045445560,-430.0,0.00019075,2]
[362164269,1748045445570,-430.0,0.00019075,2]
[362164270,1748045445579,-430.0,0.00019075,2]
[362164271,1748045445589,-430.0,0.00019075,2]
[362164272,1748045445599,-430.0,0.00019075,2]
[362164273,1748045445608,-430.0,0.00019075,2]
[362164274,1748045445618,-448.84,0.00019075,2]
[362164275,1748045445629,-430.0,0.00019075,2]
[362164276,1748045445639,-430.0,0.00019075,2]
[362164277,1748045445648,-430.0,0.00019075,2]
[362164278,1748045445658,-430.0,0.00019075,2]
[362164279,1748045445668,-430.0,0.00019075,2]
[362164280,1748045445677,-542.16,0.00019075,2]
[362164281,1748045445687,-430.0,0.00019075,2]
[362164282,1748045445696,-430.0,0.00019075,2]
[362164283,1748045445706,-430.0,0.00019075,2]
[362164285,1748045445716,-430.0,0.00019075,2]
[362164287,1748045445726,-430.0,0.00019075,2]
[362164288,1748045445736,-430.0,0.00019075,2]
[362164289,1748045445746,-430.0,0.00019075,2]
[362164290,1748045445756,-430.0,0.00019075,2]
[362164291,1748045445765,-430.0,0.00019075,2]
[362164292,1748045445775,-435.44,0.00019075,2]
[362164293,1748045445784,-430.0,0.00019075,2]
[362164294,1748045445793,-2747.311402,0.00019076,2]
[362164295,1748045445803,-2747.311402,0.00019076,2]
[362164296,1748045445813,-505.92554818,0.00019078,2]
[362164297,1748045445822,-430.0,0.00019078,2]
[362164298,1748045445833,-430.0,0.00019078,2]
[362164299,1748045445842,-430.0,0.00019078,2]
[362164300,1748045445852,-544.95269149,0.00019093,2]
[362164301,1748045445862,-430.0,0.00019093,2]
[362164302,1748045445872,-430.0,0.00019093,2]
[362164303,1748045445886,-430.0,0.00019093,2]
[362164304,1748045445895,-1104.15,0.00019093,2]
[362164306,1748045445905,-587.92,0.00019093,2]
[362164307,1748045445915,-430.0,0.00019093,2]
[362164308,1748045445926,-430.0,0.00019093,2]
[362164309,1748045445936,-430.0,0.00019093,2]
[362164310,1748045445946,-430.0,0.00019093,2]
[362164311,1748045445956,-430.0,0.00019093,2]
[362164312,1748045445966,-689.6,0.00019093,2]
[362164313,1748045445975,-430.0,0.00019093,2]
[362164314,1748045445985,-306.78,0.00019093,2]
[362164315,1748045445995,-5966.24716634,0.00019094,3]
[362164317,1748045446005,-430.0,0.00019094,2]
[362164318,1748045446014,-430.0,0.00019094,2]
[362164319,1748045446025,-331.28,0.00019094,2]
[362164320,1748045446036,-430.0,0.00019094,2]
[362164321,1748045446046,-430.0,0.00019094,2]
[362164322,1748045446056,-430.0,0.00019094,2]
[362164323,1748045446066,-430.0,0.00019094,2]
[362164324,1748045446077,-430.0,0.00019094,2]
[362164325,1748045446087,-1026.35,0.00019094,2]
[362164326,1748045446096,-430.0,0.00019094,2]
[362164327,1748045446106,-430.0,0.00019094,2]
[362164328,1748045446115,-430.0,0.00019094,2]
[362164329,1748045446129,-430.0,0.00019094,2]
[362164330,1748045446144,-463.71,0.00019094,2]
[362164331,1748045446154,-825.67,0.00019094,2]
[362164332,1748045446164,-430.0,0.00019094,2]
[362164333,1748045446175,-430.0,0.00019095,2]
[362164334,1748045446184,-430.0,0.00019095,2]
[362164335,1748045446195,-430.0,0.00019095,2]
[362164336,1748045446204,-430.0,0.00019095,2]
[362164337,1748045446214,-1664.900638,0.00019095,2]
[362164338,1748045446225,-1664.900638,0.00019095,2]
[362164339,1748045446235,-500.0,0.00019179,2]
[362164340,1748045446245,-768.4496158,0.00019195,2]
[362164341,1748045446258,-430.0,0.00019349,2]
[362164342,1748045446278,-430.0,0.00019349,2]
[362164343,1748045446297,-430.0,0.00019349,2]
[362164344,1748045446312,-450.0,0.00019349,2]
[362164345,1748045446330,-450.0,0.00019349,2]
[362164346,1748045446349,-430.0,0.00019349,2]
[362164347,1748045446366,-480.01,0.00019349,2]
[362164349,1748045446390,-430.0,0.00019349,2]
[362164351,1748045446406,-400.0,0.00019349,2]
[362164352,1748045446423,-430.0,0.00019349,2]
[362164354,1748045446438,-430.0,0.00019349,2]
[362164356,1748045446455,-430.0,0.00019349,2]
[362164358,1748045446470,-430.0,0.00019349,2]
[362164359,1748045446482,-430.0,0.00019349,2]
[362164360,1748045446498,-165.9,0.00019349,2]
[362164363,1748045446514,-430.0,0.00019349,2]
[362164366,1748045446532,-430.0,0.00019349,2]
[362164369,1748045446551,-430.0,0.00019349,2]
[362164371,1748045446571,-389.26,0.00019349,2]
[362164372,1748045446584,-189.45519483,0.00019349,2]
[362164373,1748045446596,-430.0,0.00019349,2]
[362164374,1748045446612,-679.92,0.00019349,2]
[362164375,1748045446634,-430.0,0.00019349,2]
[362164376,1748045446647,-430.0,0.00019349,2]
[362164377,1748045446661,-430.0,0.00019349,2]
[362164378,1748045446678,-430.0,0.00019349,2]
[362164379,1748045446690,-430.0,0.00019349,2]
[362164380,1748045446704,-339.43093758,0.00019349,2]
[362164381,1748045446718,-430.0,0.00019349,2]
[362164382,1748045446733,-430.0,0.00019349,2]
[362164383,1748045446747,-443.7,0.00019349,2]
[362164384,1748045446760,-430.0,0.00019349,2]
[362164385,1748045446775,-430.0,0.00019349,2]
[362164386,1748045446791,-430.0,0.00019349,2]
[362164387,1748045446807,-158.55,0.00019349,2]
[362164388,1748045446821,-430.0,0.00019349,2]
[362164389,1748045446835,-430.0,0.00019349,2]
[362164390,1748045446849,-259.71,0.00019349,2]
[362164391,1748045446863,-430.0,0.00019349,2]
[362164392,1748045446879,-436.3175324,0.00019349,2]
[362164393,1748045447097,-105.8424676,0.00019349,2]
[362164394,1748045447112,-342.98,0.00019349,2]
[362164395,1748045447128,-430.0,0.00019349,2]
[362164396,1748045447142,-288.79,0.00019349,2]
[362164397,1748045447156,-430.0,0.00019349,2]
[362164398,1748045447166,-430.0,0.00019349,2]
[362164399,1748045447176,-430.0,0.00019349,2]
[362164400,1748045447333,-151.0,0.00019351,2]
[362164401,1748045447343,-151.0,0.00019351,2]
[362164402,1748045447352,-151.0,0.00019351,2]
[362164403,1748045447364,-535.63,0.00019352,2]
[362164404,1748045447373,-430.0,0.00019352,2]
[362164405,1748045447385,-203.12157667,0.00019362,2]
[362164406,1748045447395,-430.0,0.00019367,2]
[362164407,1748045447404,-430.0,0.00019367,2]
[362164408,1748045447414,-430.0,0.00019367,2]
[362164409,1748045447424,-244.71049869,0.00019367,2]
[362164410,1748045447437,-859.43950131,0.00019367,2]
[362164411,1748045447447,-587.92,0.00019367,2]
[362164412,1748045447457,-430.0,0.00019367,2]
[362164413,1748045447468,-430.0,0.00019367,2]
[362164414,1748045447478,-430.0,0.00019367,2]
[362164415,1748045447488,-430.0,0.00019367,2]
[362164416,1748045447497,-430.0,0.00019367,2]
[362164417,1748045447507,-689.6,0.00019367,2]
[362164418,1748045447517,-430.0,0.00019367,2]
[362164419,1748045447527,-430.0,0.00019368,2]
[362164420,1748045447537,-430.0,0.00019368,2]
[362164421,1748045447547,-430.0,0.00019368,2]
[362164422,1748045447558,-430.0,0.00019368,2]
[362164423,1748045447567,-430.0,0.00019368,2]
[362164424,1748045447577,-430.0,0.00019368,2]
[362164425,1748045447587,-430.0,0.00019368,2]
[362164426,1748045447596,-1026.35,0.00019368,2]
[362164427,1748045447606,-430.0,0.00019368,2]
[362164428,1748045447616,-430.0,0.00019368,2]
[362164429,1748045447625,-430.0,0.00019368,2]
[362164430,1748045447637,-430.0,0.00019368,2]
[362164431,1748045447647,-463.71,0.00019368,2]
[362164432,1748045447657,-825.67,0.00019368,2]
[362164433,1748045447667,-430.0,0.00019368,2]
[362164434,1748045447676,-430.0,0.00019369,2]
[362164435,1748045447685,-399.7820298,0.00019369,2]
[362164436,1748045447695,-430.0,0.00019369,2]
[362164437,1748045447706,-768.4496158,0.00019542,2]
[362164438,1748045447716,-524.34,0.00019623,2]
[362164439,1748045447726,-430.0,0.00019623,2]
[362164440,1748045447736,-343.38,0.00019623,2]
[362164441,1748045447746,-430.0,0.00019623,2]
[362164442,1748045447755,-430.0,0.00019623,2]
[362164443,1748045447765,-255.51913952,0.00019623,2]
[362164444,1748045447775,-430.0,0.00019623,2]
[362164445,1748045447785,-430.0,0.00019623,2]
[362164446,1748045447795,-430.0,0.00019623,2]
[362164447,1748045447805,-430.0,0.00019623,2]
[362164448,1748045447815,-367.11223779,0.00019623,2]
[362164449,1748045447825,-679.92,0.00019623,2]
[362164450,1748045447834,-430.0,0.00019623,2]
[362164451,1748045447843,-376.29118992,0.00019623,2]
[362164452,1748045447853,-560.87,0.00019623,2]
[362164453,1748045447863,-430.0,0.00019623,2]
[362164454,1748045447874,-430.0,0.00019623,2]
[362164455,1748045447885,-430.0,0.00019623,2]
[362164456,1748045447895,-430.0,0.00019623,2]
[362164457,1748045447905,-430.0,0.00019623,2]
[362164458,1748045447914,-430.0,0.00019623,2]
[362164459,1748045447924,-369.31,0.00019623,2]
[362164460,1748045447934,-430.0,0.00019623,2]
[362164461,1748045447944,-542.16,0.00019623,2]
[362164462,1748045447954,-430.0,0.00019623,2]
[362164463,1748045447964,-430.0,0.00019623,2]
[362164464,1748045447973,-430.0,0.00019623,2]
[362164465,1748045447984,-430.0,0.00019641,2]
[362164466,1748045447993,-430.0,0.00019641,2]
[362164467,1748045448004,-275.22115337,0.00019641,2]
[362164468,1748045448221,-430.0,0.00017999,2]
[362164469,1748045448230,-368.52629353,0.00017999,2]
[362164470,1748045448337,-61.47370647,0.00017999,2]
[362164471,1748045448347,-430.0,0.00018253,2]
[362164472,1748045448356,-470.0,0.00018273,2]
[362164473,1748045448367,-430.0,0.00018273,2]
[362164474,1748045448377,-430.0,0.00018527,2]
[362164475,1748045448387,-450.0,0.00018801,2]
[362164476,1748045448397,-154.77884663,0.00019641,2]
[362164477,1748045448407,-1104.15,0.00019641,2]
[362164478,1748045448417,-587.92,0.00019641,2]
[362164479,1748045448427,-430.0,0.00019641,2]
[362164480,1748045448437,-430.0,0.00019641,2]
[362164481,1748045448447,-469.63,0.00019641,2]
[362164482,1748045448457,-430.0,0.00019641,2]
[362164483,1748045448467,-273.14,0.00019641,2]
[362164484,1748045448478,-689.6,0.00019641,2]
[362164485,1748045448488,-430.0,0.00019641,2]
[362164486,1748045448498,-430.0,0.00019642,2]
[362164487,1748045448509,-430.0,0.00019642,2]
[362164488,1748045448518,-430.0,0.00019642,2]
[362164489,1748045448529,-430.0,0.00019642,2]
[362164490,1748045448539,-430.0,0.00019642,2]
[362164491,1748045448549,-549.66,0.00019642,2]
[362164492,1748045448559,-430.0,0.00019642,2]
[362164493,1748045448569,-1026.35,0.00019642,2]
[362164494,1748045448579,-430.0,0.00019642,2]
[362164495,1748045448589,-430.0,0.00019642,2]
[362164496,1748045448599,-430.0,0.00019642,2]
[362164497,1748045448609,-430.0,0.00019642,2]
[362164498,1748045448618,-463.71,0.00019642,2]
[362164499,1748045448628,-825.67,0.00019642,2]
[362164500,1748045448638,-430.0,0.00019642,2]
[362164501,1748045448648,-430.0,0.00019643,2]
[362164502,1748045448659,-203.12157667,0.00019823,2]
[362164503,1748045448669,-430.0,0.00019897,2]
[362164504,1748045448678,-430.0,0.00019897,2]
[362164505,1748045448688,-140.06126363,0.00019897,2]
[362164506,1748045448853,-66.77302582,0.00019897,2]
[362164507,1748045449067,-129.74571055,0.00019897,2]
[362164508,1748045449078,-179.52,0.00019897,2]
[362164509,1748045449088,-428.31986445,0.00019897,2]
[362164510,1748045449101,-1.68013555,0.00019897,2]
[362164511,1748045449111,-430.0,0.00019897,2]
[362164512,1748045449121,-430.0,0.00019897,2]
[362164513,1748045449132,-430.0,0.00019897,2]
[362164514,1748045449146,-430.0,0.00019897,2]
[362164515,1748045449156,-430.0,0.00019897,2]
[362164516,1748045449166,-430.0,0.00019897,2]
[362164517,1748045449177,-226.76020832,0.00019897,2]
[362164518,1748045449187,-430.0,0.00019897,2]
[362164519,1748045449197,-430.0,0.00019897,2]
[362164520,1748045449207,-542.16,0.00019897,2]
[362164521,1748045449219,-430.0,0.00019897,2]
[362164522,1748045449229,-430.0,0.00019897,2]
[362164523,1748045449239,-430.0,0.00019897,2]
[362164524,1748045449249,-2747.311402,0.00019898,2]
[362164525,1748045449259,-2747.311402,0.00019898,2]
[362164526,1748045449269,-430.0,0.00019915,2]
[362164527,1748045449279,-430.0,0.00019915,2]
[362164528,1748045449289,-240.0567929,0.00019915,2]
[362164529,1748045449299,-1104.15,0.00019915,2]
[362164530,1748045449310,-587.92,0.00019915,2]
[362164531,1748045449321,-430.0,0.00019915,2]
[362164532,1748045449331,-430.0,0.00019915,2]
[362164533,1748045449341,-430.0,0.00019915,2]
[362164534,1748045449351,-689.6,0.00019915,2]
[362164535,1748045449361,-430.0,0.00019915,2]
[362164536,1748045449371,-491.52,0.00019916,2]
[362164537,1748045449382,-216.86,0.00019916,2]
[362164538,1748045449392,-430.0,0.00019916,2]
[362164539,1748045449403,-430.0,0.00019916,2]
[362164540,1748045449414,-430.0,0.00019916,2]
[362164541,1748045449549,-1026.35,0.00019916,2]
[362164542,1748045449560,-220.19,0.00019916,2]
[362164543,1748045449570,-430.0,0.00019916,2]